Cogmind - Beta 15 @@@ ROGUE MODE // 2025.09.20 @ 03:56:49 Player: Spitalier Result: Destroyed by VT-YF0(R) with Subdweller Beam Cannon Performance ------------- Evolutions (0) 0 Regions Visited (1) 200 Robots Destroyed (14) 70 Value Destroyed (236) 236 Prototype IDs (0) 0 Alien Tech Used (0) 0 Bonus (0) 0 TOTAL SCORE: 506 Bonus ------- None Cogmind --------- Core Integrity 0/250 Matter 300/300 Energy 100/100 System Corruption 0% Temperature Cool (9) Movement Core (1350) Ox26 Location -10/Materials Parts ------- > --- POWER (1) -------- (None) > --- PROPULSION (2) --- (None) > --- UTILITY (2) ------ Huge Storage Unit > --- WEAPON (2) ------- (None) > --- INVENTORY (25) --- Light Ion Engine Aluminum Leg Aluminum Leg Wheel Compact Wheel Small Storage Unit Medium Laser Small Laser Assault Rifle Light Cannon Peak State ------------ > --- POWER ------------ Ion Engine > --- PROPULSION ------- Light Treads Light Treads > --- UTILITY ---------- Huge Storage Unit Improved Terrain Scanner > --- WEAPON ----------- Small Laser Assault Rifle > --- INVENTORY -------- Light Ion Engine Aluminum Leg Aluminum Leg Wheel Compact Wheel Small Storage Unit Medium Laser Light Cannon Light Cannon Light Cannon [Rating: 10] Favorites ----------- Power Ion Engine Engine Ion Engine Propulsion Light Treads Treads Light Treads Leg Aluminum Leg Utility Huge Storage Unit Device Improved Terrain Scanner Storage Huge Storage Unit Weapon Light Cannon Energy Gun Small Laser Ballistic Gun Assault Rifle Ballistic Cannon Light Cannon Build | -11 -10 ------- Run | Yrd Mat Slots Evolved . | . . Power . | . . Propulsion . | . . Utility . | . . Weapon . | . . Parts Attached 12 | 9 3 Power 2 | 2 . Engine 2 | 2 . Core . | . . Reactor . | . . Propulsion 3 | 3 . Treads 2 | 2 . Leg 1 | 1 . Wheel . | . . Hover . | . . Flight . | . . Utility 3 | 2 1 Device 1 | 1 . Storage 2 | 1 1 Processor . | . . Hackware . | . . Protection . | . . Artifact . | . . Weapon 4 | 2 2 Energy Gun 1 | 1 . Energy Cannon . | . . Ballistic Gun 1 | 1 . Ballistic Cannon 2 | . 2 Launcher . | . . Special Weapon . | . . Impact Weapon . | . . Slashing Weapon . | . . Piercing Weapon . | . . Special Melee Weapon . | . . Unidentified Prototypes . | . . Parts Lost 6 | . 6 Power 1 | . 1 Propulsion 2 | . 2 Utility 1 | . 1 Weapon 2 | . 2 Highest Loss Streak 6 | . 6 To Critical Strikes . | . . Average Backups 8 | 4 9 Power . | . 1 Propulsion 3 | 3 4 Utility . | . . Weapon 3 | . 3 Tool/Special . | . . Unused Backups 5 | . 5 Power . | . . Propulsion 3 | . 3 Utility . | . . Weapon 2 | . 2 Tool/Special . | . . Average Slot Usage (%) 94 | . 94 Engine 12 | . 12 Treads 26 | . 26 Device 12 | . 12 Storage 14 | . 14 Energy Gun 1 | . 1 Ballistic Gun 1 | . 1 Ballistic Cannon 22 | . 22 Peak Build Rating 10 | 9 10 Average Rating 8 | 5 9 On Entrance 4 | . 9 Naked Turns . | . . Heaviest Build 92 | 14 92 Greatest Support 40 | 40 40 Greatest Overweight (x) 26 | 1 26 Average Overweight (x) 1 | . 2 Largest Inventory Capacity 25 | 8 25 Average Capacity 20 | 7 24 Most Carried 12 | 6 12 Average Carried 8 | 5 9 Final Capacity 25 | 8 25 Final Carried 10 | 6 10 Class Distribution -------------------- 100% | Mutant Dominant Class ---------------- Mutant | -10/Materials Resources | -11 -10 ----------- Run | Yrd Mat Matter Collected 435 | 295 140 Remotely . | . . Salvage Created 387 | 178 209 Parts 33 | 13 20 Haulers Intercepted . | . . Recyclers Shooed 2 | 1 1 Parts Field Recycled . | . . Retrieved Matter . | . . Parts Self-Destructed . | . . Prevented . | . . Kills | -11 -10 ------- Run | Yrd Mat Combat Hostiles Destroyed 7 | . 7 Cannons 7 | . 7 Classes Destroyed 6 | 3 3 Worker 1 | 1 . Tunneler 4 | 3 1 Recycler 2 | 1 1 Swarmer 3 | . 3 Grunt 3 | . 3 Subdweller 1 | . 1 Best Kill Streak 5 | 5 2 Combat Bots Only 2 | . 2 Max Kills in Single Turn 1 | 1 1 Gunslinging . | . . Exploded . | . . Melee . | . . Uniques/NPCs Destroyed . | . . Combat | -11 -10 -------- Run | Yrd Mat Hostile Shots Fired 88 | . 88 Missed 24 | . 24 Hits 64 | . 64 Projectile 64 | . 64 Critical Strikes 1 | . 1 Damage Taken 997 | . 997 Core 258 | . 258 Absorbed by Shields . | . . Core Remaining (%) 100 | 100 . Volleys Fired 29 | 10 19 Largest 2 | 2 2 Hottest 60 | 60 60 Shots Fired 54 | 20 34 Gun 20 | 20 . Cannon 34 | . 34 Launcher . | . . Special . | . . Kinetic 44 | 10 34 Thermal 10 | 10 . Explosive . | . . Electromagnetic . | . . Robot Hit Streak 6 | 3 6 Robot Miss Streak 3 | 3 3 Penetration Max . | . . Secondary Targets . | . . Shots Hit Robots 28 | 11 17 Core Hits 16 | 6 10 Critical Kills . | . . Critical Parts Destroyed . | . . Critical Strikes 2 | . 2 Blast 2 | . 2 Melee Attacks . | . . Impact . | . . Slashing . | . . Piercing . | . . Sneak Attacks . | . . Combat Hostiles . | . . Follow-up Attacks . | . . Damage Inflicted 459 | 146 313 Guns 134 | 134 . Cannons 289 | . 289 Explosions . | . . Melee . | . . Ramming 36 | 12 24 Kinetic 378 | 89 289 Thermal 45 | 45 . Explosive . | . . Electromagnetic . | . . Impact . | . . Slashing . | . . Piercing . | . . Highest Corruption . | . . Average Corruption . | . . Corruption Purged . | . . Corruption Blocked . | . . Overload Shots . | . . Overflow Damage . | . . Projectiles . | . . Explosions . | . . Melee . | . . Knockbacks 4 | . 4 Impact . | . . Kinetic 3 | . 3 Secondary 1 | . 1 Self-Inflicted Damage . | . . Shots . | . . Rammed 12 | 6 6 Targets Rammed 14 | 6 8 Kicked . | . . Crushed 2 | . 2 Highest Temperature 60 | . 60 Average Temperature 22 | . 22 Received Heat Transfer 291 | . 291 Siege Activations . | . . Martial Activations . | . . Shielding Activations . | . . Robots Disrupted . | . . Combat Hostiles . | . . Robots Corrupted . | . . Combat Hostiles . | . . Parts Fried . | . . Impact Corruptions . | . . Robots Melted . | . . Combat Hostiles . | . . Parts Melted . | . . Heat Transferred 100 | 100 . Parts Sabotaged . | . . Parts Stolen . | . . Parts Stripped . | . . Power Chain Reactions . | . . Alert | -11 -10 ------- Run | Yrd Mat Maximum Alert Level . | . . Low Security (%) 100 | 100 100 Level 1 . | . . Level 2 . | . . Level 3 . | . . Level 4 . | . . Level 5 . | . . High Security . | . . Max Security . | . . Peak Influence 66 | 15 66 Initial . | . . Average 10 | 1 13 Influence Increases 197 | 25 172 Destroy 0b10 Robot/C 120 | . 120 Destroy 0b10 Robot/NC 35 | 25 10 Destroy Leader 20 | . 20 Successful Hack 7 | . 7 Disable Machine 15 | . 15 Influence Decreases 197 | 25 172 Time Decay 157 | 25 132 Lost Part 40 | . 40 Squads Dispatched 1 | . 1 Investigation . | . . Extermination . | . . Reinforcement 1 | . 1 Assault . | . . Garrison . | . . Intercept . | . . Searches Triggered . | . . Construction Impeded . | . . Haulers Reinforced . | . . Active Scanning Responses . | . . Cargo Convoy Interrupts . | . . Stealth | -11 -10 --------- Run | Yrd Mat Distress Signals 1 | . 1 Communications Jammed . | . . Distress Signals . | . . Times Spotted 12 | . 12 Peak Tracking Total 4 | . 4 Tactical Retreats . | . . Traps | -11 -10 ------- Run | Yrd Mat Traps Triggered . | . . Indirectly . | . . Trap Hack Attempts . | . . Triggered . | . . Disarmed . | . . Reprogrammed . | . . Reused . | . . Traps Extracted . | . . Installed . | . . Triggered . | . . Machines | -11 -10 ---------- Run | Yrd Mat Machines Disabled 1 | . 1 Max in Single Turn 1 | . 1 Machines Repaired . | . . Machines Dismantled . | . . Machines Sabotaged . | . . Overloaded Fab Kills . | . . Hacking | -11 -10 --------- Run | Yrd Mat Machines Accessed 2 | . 2 Terminals 2 | . 2 Fabricators . | . . Repair Stations . | . . Recycling Units . | . . Scanalyzers . | . . Garrison Access . | . . Total Hacks 6 | . 6 Successful 4 | . 4 Failed 2 | . 2 Catastrophic . | . . Database Lockouts . | . . Manual 1 | . 1 Terminals 6 | . 6 Fabricators . | . . Repair Stations . | . . Recycling Units . | . . Scanalyzers . | . . Garrison Access . | . . Terminal Hacks 4 | . 4 Record 1 | . 1 Alert Level 2 | . 2 Zone Layout 1 | . 1 Fabricator Hacks . | . . Repair Station Hacks . | . . Recycling Unit Hacks . | . . Scanalyzer . | . . Garrison Access Hacks . | . . Unauthorized Hacks . | . . Terminals . | . . Fabricators . | . . Repair Stations . | . . Recycling Units . | . . Scanalyzers . | . . Garrison Access . | . . Data Cores Recovered . | . . Used . | . . Hacking Detections 1 | . 1 Full Trace Events . | . . Feedback Events . | . . Feedback Blocked . | . . Robot Schematics Acquired . | . . Robots Built . | . . Authchips . | . . Time . | . . Total Robot Build Rating . | . . Part Schematics Acquired . | . . Parts Built . | . . Authchips . | . . Time . | . . Total Part Build Rating . | . . Parts Repaired . | . . Time . | . . Parts Recycled . | . . Recycled Matter . | . . Retrieved Matter . | . . Retrieved Components . | . . Parts Scanalyzed . | . . Part Schematics Acquired . | . . Parts Damaged . | . . Bothacking | -11 -10 ------------ Run | Yrd Mat Used RIF Installer . | . . Robots Hacked . | . . Non-combat . | . . Combat . | . . Robot Hacks Applied . | . . Relay Couplers Released . | . . Fabnet Peak Effective % . | . . Robots Rewired . | . . Allies Hacked . | . . Hacks Repelled . | . . Allies | -11 -10 -------- Run | Yrd Mat Total Allies . | . . Largest Group . | . . Highest-Rated Group . | . . Highest-Rated Ally . | . . Total Orders . | . . Ally Attacks . | . . Total Damage . | . . Kills . | . . Allies Corrupted . | . . Allies Melted . | . . Intel | -11 -10 ------- Run | Yrd Mat Active Infowar (turns) 620 | 24 596 Terrain 620 | 24 596 Robot Analysis Total . | . . Derelict Logs Recovered . | . . Drone Launches . | . . Drone Recoveries . | . . Exploration | -11 -10 ------------- Run | Yrd Mat Turns Passed 866 | 205 661 Spaces Moved 278 | 100 178 Core 22 | 20 2 Treads 251 | 75 176 Legs 5 | 5 . Wheels . | . . Hover . | . . Flight . | . . Fastest Speed 50 | 50 160 Average Speed 256 | 136 324 Slowest Speed 1350 | 190 1350 Overloaded Moves . | . . Propulsion Burnouts . | . . Robots Hopped . | . . Potential Cave-ins . | . . Cave-ins Triggered . | . . Exploration Rate (%) 17 | 7 27 Regions Visited 1 Branch Regions . Pre-discovered Areas . | . . Known Exits Taken . | . . Unknown Exits Taken 1 | 1 . Scrap Searched . | . . Spaces Dug . | . . Terrain Destroyed . | . . Melee . | . . Projectile . | . . AOE . | . . Terrain Rammed . | . . Walls Destroyed . | . . Machines Disabled . | . . Actions | -11 -10 --------- Run | Yrd Mat Total 358 | 142 216 Wait 10 | 10 . Move 277 | 99 178 Hop . | . . Pick Up 11 | 6 5 Fast Attach 8 | 7 1 Attach 3 | 1 2 Detach 3 | 1 2 Swap 1 | 1 . Drop 2 | 1 1 Fire 29 | 10 19 Melee . | . . Ram . | . . Kick . | . . Crush 14 | 6 8 Escape Stasis . | . . Rewire . | . . Trap . | . . Miscellaneous . | . . Route ------- -11/Scrapyard -10/Materials (discovered 1 exit: [*Sub]) History --------- Turn | Location | Event 19 | -11/Scrapyard | Discovered new exit (range 14) 206 | -11/Scrapyard | Entered Materials 318 | -10/Materials | Build established: Mutant 447 | -10/Materials | Discovered new exit (range 6) 706 | -10/Materials | Derelicts attacked the area 855 | -10/Materials | Core integrity fell below 50% 864 | -10/Materials | Core integrity fell below 20% 867 | -10/Materials | Destroyed by VT-YF0(R) with Subdweller Beam Cannon Last Messages --------------- 00822_ VT-YF0(R) suffers critical hit (Blast). 00822_ VT-YF0(R) knocked back. 00824_ 1X-CL7(R) destroyed. 00824_ Lgt. Treads destroyed. 00825_ K-01 Serf collects debris. 00826_ Lgt. Cannon destroyed. 00828_ K-01 Serf collects debris. 00828_ Slammed into VT-YF0(R). 00829_ Acquired 1 matter. 00832_ Slammed into VT-YF0(R). 00834_ K-01 Serf collects debris. 00836_ Slammed into VT-YF0(R). 00838_ K-01 Serf collects debris. 00840_ VT-YF0(R) affixes Scrap Shield Fragment to Scrap Shield. 00841_ K-01 Serf collects debris. 00847_ Lgt. Treads destroyed. 00856_ K-01 Serf destroyed. 00864_ R-06 Scavenger collects Aluminum Leg. 00866_ U-05 Engineer builds a Wall. Map ----- +----------------------------------------------------+ | ?????????? ??????? ?# #?????????????? | | ??????????????????##+### #?????????????? | | ???? ?????????????# +? ???????????? | | ????? ???????????## #?????????????? | | ?????"??"??######## #???"?????????? | | ????????? ## # ###### ???? ???????? | | ??????????## # # #??? ?????????? | | ????????? ?# """ + + #?#?#????#????? | | ??????#????# """ # # #???##?#??????? | | ???????????# """ ?# #? #?????????????? | | ?????????### ?# #????#?#??????#????? | | ?? ?????? ?#??#/### # ????????????????? | | ???? ?????????# % # ?##???#????????? | | ??? ?? ???#??## ##%## #? ????##??????????? | | ???????????#??# ##### # ? ?##??#????????? | | ??????#?? #####/##### #??????##???##?????? | | ??#???# # !% = # #???###???#???#????? | | ? + %/ | # #???#?#?#???#?#????? | | ??????# # """ % # ###########????????? | | ??????#???# """ #%#! #????????? | | ??????? ?# """ #*# %"""""" #####????# | | ????? ??? # !! # #%""""""" # #????? | | ??????? # ! # #*%"""""" + #????? | | ????????? # # #*"%""""" # #####? | | ????????? ###########%/r""""""" # # #? | | ????????? ####??????#=#%R@ R # # ## | | ????????? #???????#?# #*] # # <# | | ??????? ? #??#????#?# ##;######## # #? | | ??????? ? ###########+########### + #? | | ????????? # # ]! ## ## # #? | | ????????? # """ # !! ##!!!## # #? | | ????????? # """ # ! ##!!!## # #? | | ????????? # """ # ! ##!!!## # ##? | | ????????? # ########### ## #####? | | ????????? # """ # ## ## #????? | | ????????? + """ # ""## ## ##??#? | | ????????? # """ # ! T"###+## #??#? | | ????????? # # ""# * ##??# | | ????????? # """ # " + [ T #??#? | | ????????? # """ # """" # #?#?? | | ????????? # """ # "" ###+## #???? | | ????????? # # ## ## ####?? | | ????????? ######## ## ## # ? | | ?????????##??????########### ## + ?? | | ?????????????????????##??#?# ## # ?? | | ??????????????#????????????# ## # ? | | ????????????????????#?#????# ###### ?? | | ?????????????#??????#??????# ##??## ? | | ?????????????????????#?????#####?##?# ?? | | ?????????????????????????????##?#?#?# ?? | +----------------------------------------------------+ Best States ------------- Heat Dissipation 25 Energy Generation 10 Energy Capacity 250 Matter Stores 300 Matter Capacity 300 Sight Range 16 Terrain Scan Range 16 Terrain Scan Density 10 Evasion (%) 50 Recoil Reduction 2 Item Schematics ----------------- None Robot Schematics ------------------ None Fabricated ------------ Nothing Repaired ---------- Nothing Alien Tech Used ----------------- None Achievements -------------- None Challenges ------------ None Game ------ Seed SniperEncryptedJammer Manual? 0 Play Time 00:13:29 Cumulative 10.6 hours Start 2025.09.20 @ 03:43:19 End 2025.09.20 @ 03:56:49 Sessions 1 Manual Loads 0 Difficulty Rogue Special Mode None Game No. 16 Rogue 16 Adventurer 0 Explorer 0 Win Type - Total 0 Types 0/0/0/0/0/0/0/0/0/0 Lore% 6 Gallery% 12 Achievement% 14 Wizard Run 0 Options --------- Layout 1 ASCII 0 Keyboard 0 Movement Numpad Keybinds 0 Fullscreen 1 Font 32/SmallcapsGlow Map View 50x35 Zoom Use 0% Tactical HUD 1 Map Filters NONE Filters NONE Steam 1 RUN: 4f047ccd-9e08-49ae-9683-eb305bb6ae17